[Event "*** Titled Tuesday 3|2 Blitz"]
[Site "Chess.com"]
[Date "2015.07.07"]
[Round "2"]
[White "MFBerna"]
[Black "HansCoolNiemann"]
[Result "0-1"]
[WhiteElo "2022"]
[BlackElo "1952"]
[TimeControl "180+2"]
[EndTime "11:24:25 PDT"]
[Termination "HansCoolNiemann won by checkmate"]

1. e4 {[%clk 0:03:01.9]} 1... e6 {[%clk 0:02:59.3]} 2. d4 {[%clk 0:03:02.2]}
2... d5 {[%clk 0:03:00.3]} 3. Nd2 {[%clk 0:03:00.1]} 3... c5 {[%clk 0:03:00]} 4.
exd5 {[%clk 0:03:00.5]} 4... Qxd5 {[%clk 0:03:00.3]} 5. Ngf3 {[%clk 0:03:01.3]}
5... cxd4 {[%clk 0:03:00.9]} 6. Bc4 {[%clk 0:03:02.2]} 6... Qd6 {[%clk
0:03:01.4]} 7. O-O {[%clk 0:03:02.9]} 7... Nf6 {[%clk 0:03:01.2]} 8. Nb3 {[%clk
0:03:03.1]} 8... Nc6 {[%clk 0:03:01.4]} 9. Nbxd4 {[%clk 0:03:04]} 9... Nxd4
{[%clk 0:03:03.3]} 10. Qxd4 {[%clk 0:03:05.2]} 10... Qxd4 {[%clk 0:03:02.6]} 11.
Nxd4 {[%clk 0:03:07.1]} 11... Bd7 {[%clk 0:03:02.6]} 12. Bf4 {[%clk 0:02:58.6]}
12... a6 {[%clk 0:02:58.4]} 13. Rad1 {[%clk 0:02:56.6]} 13... Rc8 {[%clk
0:02:55.3]} 14. Bb3 {[%clk 0:02:56.5]} 14... Bc5 {[%clk 0:02:47.6]} 15. Rfe1
{[%clk 0:02:53.6]} 15... O-O {[%clk 0:02:45.6]} 16. Bg5 {[%clk 0:02:49.2]} 16...
h6 {[%clk 0:02:45.6]} 17. Bxf6 {[%clk 0:02:43]} 17... gxf6 {[%clk 0:02:47.5]}
18. Nf5 {[%clk 0:02:34.9]} 18... Bc6 {[%clk 0:02:39.6]} 19. Nxh6+ {[%clk
0:02:32.9]} 19... Kg7 {[%clk 0:02:36.9]} 20. Ng4 {[%clk 0:02:29.4]} 20... Rg8
{[%clk 0:02:30.7]} 21. Ne3 {[%clk 0:01:56.8]} 21... Kh8 {[%clk 0:02:18]} 22. g3
{[%clk 0:01:38.4]} 22... f5 {[%clk 0:02:17.2]} 23. Ng2 {[%clk 0:01:32.6]} 23...
Rgd8 {[%clk 0:01:59.3]} 24. Nf4 {[%clk 0:01:20.6]} 24... Bf3 {[%clk 0:01:54.1]}
25. Rd3 {[%clk 0:01:14.2]} 25... Be4 {[%clk 0:01:53.6]} 26. Rxd8+ {[%clk
0:01:12]} 26... Rxd8 {[%clk 0:01:53.6]} 27. Nd3 {[%clk 0:00:55.9]} 27... Bxd3
{[%clk 0:01:53.5]} 28. Rd1 {[%clk 0:00:52.7]} 28... Rd6 {[%clk 0:01:22.9]} 29.
cxd3 {[%clk 0:00:48.2]} 29... Bd4 {[%clk 0:01:23.6]} 30. Rd2 {[%clk 0:00:47]}
30... Rc6 {[%clk 0:01:23.6]} 31. Kg2 {[%clk 0:00:44.4]} 31... Rc1 {[%clk
0:01:22.6]} 32. Bd1 {[%clk 0:00:38.3]} 32... b5 {[%clk 0:01:18.3]} 33. Bf3
{[%clk 0:00:36.3]} 33... Ra1 {[%clk 0:01:09.6]} 34. b3 {[%clk 0:00:32.1]} 34...
Bc3 {[%clk 0:01:09.5]} 35. Rc2 {[%clk 0:00:30.9]} 35... b4 {[%clk 0:01:09.6]}
36. a4 {[%clk 0:00:28.1]} 36... bxa3 {[%clk 0:00:59.3]} 37. Rxc3 {[%clk
0:00:28.1]} 37... a2 {[%clk 0:00:58]} 38. Rc2 {[%clk 0:00:22.2]} 38... Rg1+
{[%clk 0:00:57.5]} 39. Kxg1 {[%clk 0:00:23.5]} 39... a1=Q+ {[%clk 0:00:57.4]}
40. Kg2 {[%clk 0:00:24.6]} 40... Qd4 {[%clk 0:00:57.8]} 41. Rd2 {[%clk
0:00:15.4]} 41... Qc3 {[%clk 0:00:57.9]} 42. Rd1 {[%clk 0:00:13]} 42... Qxb3
{[%clk 0:00:58.8]} 43. d4 {[%clk 0:00:13.3]} 43... a5 {[%clk 0:00:59.2]} 44. d5
{[%clk 0:00:14.6]} 44... exd5 {[%clk 0:00:59.8]} 45. Rxd5 {[%clk 0:00:16.5]}
45... a4 {[%clk 0:01:00.7]} 46. Rxf5 {[%clk 0:00:17.4]} 46... a3 {[%clk
0:00:57.6]} 47. Bd5 {[%clk 0:00:18.4]} 47... Qd3 {[%clk 0:00:55.9]} 48. g4
{[%clk 0:00:17.6]} 48... f6 {[%clk 0:00:51.8]} 49. h3 {[%clk 0:00:15.2]} 49...
Kg7 {[%clk 0:00:51.5]} 50. Rh5 {[%clk 0:00:12.7]} 50... Qd2 {[%clk 0:00:49.4]}
51. Rf5 {[%clk 0:00:12.2]} 51... a2 {[%clk 0:00:46.3]} 52. Bxa2 {[%clk
0:00:12.6]} 52... Qxa2 {[%clk 0:00:48.2]} 53. Rh5 {[%clk 0:00:11.7]} 53... Qc4
{[%clk 0:00:45.9]} 54. Rf5 {[%clk 0:00:11.9]} 54... Qe4+ {[%clk 0:00:47.4]} 55.
Kg3 {[%clk 0:00:12.9]} 55... Qh1 {[%clk 0:00:25]} 56. Rh5 {[%clk 0:00:11.6]}
56... Qg1+ {[%clk 0:00:24.8]} 57. Kf3 {[%clk 0:00:12.5]} 57... Kg6 {[%clk
0:00:25.5]} 58. Rf5 {[%clk 0:00:08.8]} 58... Qh2 {[%clk 0:00:25.2]} 59. Rh5
{[%clk 0:00:09.1]} 59... Kg7 {[%clk 0:00:21.1]} 60. Ke3 {[%clk 0:00:05.9]} 60...
Qg2 {[%clk 0:00:21.5]} 61. Kf4 {[%clk 0:00:02.4]} 61... Qxf2+ {[%clk 0:00:20.7]}
62. Ke4 {[%clk 0:00:04.3]} 62... Kg6 {[%clk 0:00:21.4]} 63. Kd3 {[%clk 0:00:05]}
63... Qf3+ {[%clk 0:00:22.6]} 64. Kd2 {[%clk 0:00:06]} 64... Kf7 {[%clk
0:00:22.8]} 65. Ke1 {[%clk 0:00:07]} 65... Ke6 {[%clk 0:00:23.7]} 66. Kd2 {[%clk
0:00:08.1]} 66... f5 {[%clk 0:00:22.5]} 67. Rxf5 {[%clk 0:00:08.1]} 67... Qxh3
{[%clk 0:00:22.8]} 68. Rf4 {[%clk 0:00:07.4]} 68... Qg3 {[%clk 0:00:21.6]} 69.
Re4+ {[%clk 0:00:07.5]} 69... Kd5 {[%clk 0:00:22.9]} 70. Re3 {[%clk 0:00:07.2]}
70... Qxg4 {[%clk 0:00:23.7]} 71. Rd3+ {[%clk 0:00:08]} 71... Ke4 {[%clk
0:00:24.4]} 72. Re3+ {[%clk 0:00:08.1]} 72... Kf4 {[%clk 0:00:26.3]} 73. Re2
{[%clk 0:00:08.7]} 73... Qf3 {[%clk 0:00:26.9]} 74. Re1 {[%clk 0:00:08.4]} 74...
Qf2+ {[%clk 0:00:26.8]} 75. Re2 {[%clk 0:00:09.4]} 75... Qd4+ {[%clk 0:00:28.3]}
76. Kc2 {[%clk 0:00:10.9]} 76... Kf3 {[%clk 0:00:29.8]} 77. Rd2 {[%clk
0:00:11.9]} 77... Qc4+ {[%clk 0:00:30.2]} 78. Kd1 {[%clk 0:00:10.7]} 78... Ke3
{[%clk 0:00:29.1]} 79. Rh2 {[%clk 0:00:06.8]} 79... Qd4+ {[%clk 0:00:28.7]} 80.
Ke1 {[%clk 0:00:05.2]} 80... Qa1# {[%clk 0:00:29.1]} 0-1

[Event "*** Titled Tuesday 3|2 Blitz"]
[Site "Chess.com"]
[Date "2015.07.07"]
[Round "2"]
[White "MichiganEagle"]
[Black "armago"]
[Result "1/2-1/2"]
[WhiteElo "2250"]
[BlackElo "2147"]
[TimeControl "180+2"]
[EndTime "11:25:25 PDT"]
[Termination "Game drawn - insufficient material"]

1. d4 {[%clk 0:03:01.9]} 1... Nf6 {[%clk 0:02:59.7]} 2. Nf3 {[%clk 0:03:02.7]}
2... g6 {[%clk 0:03:01.2]} 3. g3 {[%clk 0:03:03.6]} 3... Bg7 {[%clk 0:03:02.3]}
4. Bg2 {[%clk 0:03:05.1]} 4... O-O {[%clk 0:03:03.3]} 5. O-O {[%clk 0:03:06.6]}
5... d5 {[%clk 0:03:04.3]} 6. c4 {[%clk 0:03:06.7]} 6... dxc4 {[%clk 0:03:05.3]}
7. Na3 {[%clk 0:03:07.7]} 7... c3 {[%clk 0:03:05.7]} 8. bxc3 {[%clk 0:03:09.6]}
8... c5 {[%clk 0:03:06.6]} 9. Qb3 {[%clk 0:03:11.2]} 9... Nc6 {[%clk 0:03:05]}
10. Rd1 {[%clk 0:03:12.7]} 10... cxd4 {[%clk 0:03:01.2]} 11. cxd4 {[%clk
0:03:14.6]} 11... Be6 {[%clk 0:03:00.5]} 12. Qxb7 {[%clk 0:03:14]} 12... Bd5
{[%clk 0:03:00.3]} 13. Qa6 {[%clk 0:03:08.3]} 13... Rb8 {[%clk 0:02:42.1]} 14.
Bf4 {[%clk 0:02:52.2]} 14... Rb6 {[%clk 0:02:38.1]} 15. Qd3 {[%clk 0:02:38.7]}
15... Nb4 {[%clk 0:02:32.7]} 16. Qc3 {[%clk 0:02:35.8]} 16... Nxa2 {[%clk
0:02:29.7]} 17. Qc7 {[%clk 0:02:16.3]} 17... Qxc7 {[%clk 0:02:19.9]} 18. Bxc7
{[%clk 0:02:18.2]} 18... Rb7 {[%clk 0:02:21.1]} 19. Be5 {[%clk 0:02:08.9]} 19...
Nc3 {[%clk 0:02:19.9]} 20. Rd2 {[%clk 0:02:08.9]} 20... Rc8 {[%clk 0:02:12.7]}
21. Bxf6 {[%clk 0:01:45.8]} 21... Bxf6 {[%clk 0:02:07.3]} 22. Ne5 {[%clk
0:01:44.4]} 22... Bxg2 {[%clk 0:01:57.8]} 23. Kxg2 {[%clk 0:01:46.3]} 23... Bxe5
{[%clk 0:01:34.8]} 24. dxe5 {[%clk 0:01:48.2]} 24... Rc5 {[%clk 0:01:34.6]} 25.
Rc2 {[%clk 0:01:36.1]} 25... Rb3 {[%clk 0:01:20.3]} 26. Nb1 {[%clk 0:01:24.3]}
26... Ne4 {[%clk 0:01:20.9]} 27. Rxc5 {[%clk 0:01:22.9]} 27... Nxc5 {[%clk
0:01:20.6]} 28. Nd2 {[%clk 0:01:23.5]} 28... Rb2 {[%clk 0:01:20.6]} 29. Nc4
{[%clk 0:01:04.6]} 29... Rxe2 {[%clk 0:01:18.8]} 30. Rxa7 {[%clk 0:00:59.3]}
30... Nd3 {[%clk 0:01:19.6]} 31. Rxe7 {[%clk 0:00:53.3]} 31... Rxf2+ {[%clk
0:01:19.6]} 32. Kg1 {[%clk 0:00:54.4]} 32... Re2 {[%clk 0:01:19.3]} 33. Nd6
{[%clk 0:00:32.4]} 33... Nxe5 {[%clk 0:01:17]} 34. Kf1 {[%clk 0:00:31.7]} 34...
Rd2 {[%clk 0:01:10.4]} 35. Re8+ {[%clk 0:00:18.1]} 35... Kg7 {[%clk 0:01:10.1]}
36. Rxe5 {[%clk 0:00:17.2]} 36... Rxd6 {[%clk 0:01:09.9]} 37. Kg2 {[%clk
0:00:18.5]} 37... Re6 {[%clk 0:01:09]} 38. Rd5 {[%clk 0:00:19]} 38... h6 {[%clk
0:01:10.3]} 39. h4 {[%clk 0:00:20]} 39... h5 {[%clk 0:01:09.5]} 40. Kf3 {[%clk
0:00:21]} 40... Kf6 {[%clk 0:01:10]} 41. Rc5 {[%clk 0:00:21.4]} 41... Re5 {[%clk
0:01:10.4]} 42. Rc6+ {[%clk 0:00:22]} 42... Kg7 {[%clk 0:01:10.4]} 43. Rc7
{[%clk 0:00:23.3]} 43... Rf5+ {[%clk 0:01:10.5]} 44. Kg2 {[%clk 0:00:23.9]}
44... Kh6 {[%clk 0:01:11.3]} 45. Rb7 {[%clk 0:00:25.3]} 45... f6 {[%clk
0:01:12.2]} 46. Rf7 {[%clk 0:00:25.8]} 46... g5 {[%clk 0:01:11.6]} 47. hxg5+
{[%clk 0:00:26.4]} 47... Kxg5 {[%clk 0:01:12.5]} 48. Rf8 {[%clk 0:00:27.1]}
48... Ra5 {[%clk 0:01:13]} 49. Rg8+ {[%clk 0:00:27.9]} 49... Kf5 {[%clk
0:01:12.7]} 50. Rh8 {[%clk 0:00:28.9]} 50... Ke4 {[%clk 0:01:13.2]} 51. Kh3
{[%clk 0:00:26.3]} 51... Kf3 {[%clk 0:01:09.3]} 52. Rf8 {[%clk 0:00:24.4]} 52...
Rf5 {[%clk 0:01:09.2]} 53. Kh2 {[%clk 0:00:21.3]} 53... Kg4 {[%clk 0:01:08.1]}
54. Rg8+ {[%clk 0:00:22.2]} 54... Rg5 {[%clk 0:01:09.3]} 55. Rf8 {[%clk
0:00:22.6]} 55... f5 {[%clk 0:01:10.6]} 56. Kg2 {[%clk 0:00:23.5]} 56... Rg6
{[%clk 0:01:08.4]} 57. Rf7 {[%clk 0:00:24.1]} 57... Kg5 {[%clk 0:01:06.6]} 58.
Rf8 {[%clk 0:00:24.5]} 58... Ra6 {[%clk 0:01:02.9]} 59. Rg8+ {[%clk 0:00:25.7]}
59... Kf6 {[%clk 0:01:03.5]} 60. Rh8 {[%clk 0:00:26.6]} 60... Ra2+ {[%clk
0:00:59.5]} 61. Kh3 {[%clk 0:00:26.9]} 61... Ra3 {[%clk 0:00:57.4]} 62. Kg2
{[%clk 0:00:25.2]} 62... Kg6 {[%clk 0:00:57.1]} 63. Rg8+ {[%clk 0:00:26.1]}
63... Kf6 {[%clk 0:00:57.3]} 64. Rh8 {[%clk 0:00:27]} 64... Kg6 {[%clk
0:00:57.7]} 65. Rg8+ {[%clk 0:00:28.2]} 65... Kh6 {[%clk 0:00:55.4]} 66. Kf2
{[%clk 0:00:26.8]} 66... Ra6 {[%clk 0:00:51.7]} 67. Kf3 {[%clk 0:00:27.1]} 67...
Rg6 {[%clk 0:00:50.7]} 68. Rf8 {[%clk 0:00:28]} 68... Kg5 {[%clk 0:00:51.5]} 69.
Rh8 {[%clk 0:00:29.2]} 69... Rg7 {[%clk 0:00:51.9]} 70. Kg2 {[%clk 0:00:28.9]}
70... Rg6 {[%clk 0:00:45.4]} 71. Rh7 {[%clk 0:00:29.3]} 71... Rh6 {[%clk
0:00:46.2]} 72. Rg7+ {[%clk 0:00:30]} 72... Kf6 {[%clk 0:00:46.4]} 73. Rg8
{[%clk 0:00:31]} 73... h4 {[%clk 0:00:47.3]} 74. gxh4 {[%clk 0:00:31.6]} 74...
Rxh4 {[%clk 0:00:46.1]} 75. Kg3 {[%clk 0:00:32.7]} 75... Ra4 {[%clk 0:00:45.7]}
76. Kf3 {[%clk 0:00:32.4]} 76... Ra3+ {[%clk 0:00:43.2]} 77. Kf4 {[%clk
0:00:32.7]} 77... Ra4+ {[%clk 0:00:44.2]} 78. Kf3 {[%clk 0:00:34]} 78... Rc4
{[%clk 0:00:39]} 79. Rf8+ {[%clk 0:00:33.3]} 79... Kg6 {[%clk 0:00:39.3]} 80.
Rg8+ {[%clk 0:00:34.2]} 80... Kf7 {[%clk 0:00:40.2]} 81. Rg5 {[%clk 0:00:33.9]}
81... Kf6 {[%clk 0:00:29.2]} 82. Rg8 {[%clk 0:00:34.7]} 82... Ra4 {[%clk
0:00:27.3]} 83. Rf8+ {[%clk 0:00:35.2]} 83... Ke6 {[%clk 0:00:26.6]} 84. Re8+
{[%clk 0:00:36.2]} 84... Kd7 {[%clk 0:00:26.6]} 85. Rf8 {[%clk 0:00:37]} 85...
Ke6 {[%clk 0:00:27.2]} 86. Re8+ {[%clk 0:00:37.9]} 86... Kf7 {[%clk 0:00:27.7]}
87. Re5 {[%clk 0:00:38.6]} 87... Kf6 {[%clk 0:00:28.3]} 88. Re8 {[%clk
0:00:39.3]} 88... Kf7 {[%clk 0:00:29.1]} 89. Re5 {[%clk 0:00:40.1]} 89... Ra3+
{[%clk 0:00:26.8]} 90. Kf4 {[%clk 0:00:40.6]} 90... Kg6 {[%clk 0:00:27.8]} 91.
Re6+ {[%clk 0:00:38.4]} 91... Kf7 {[%clk 0:00:27.9]} 92. Kxf5 {[%clk 0:00:33]}
92... Rf3+ {[%clk 0:00:26.8]} 93. Ke4 {[%clk 0:00:34]} 93... Rf1 {[%clk
0:00:25.8]} 94. Re5 {[%clk 0:00:34.3]} 94... Re1+ {[%clk 0:00:25.8]} 95. Kd4
{[%clk 0:00:35]} 95... Rxe5 {[%clk 0:00:27.2]} 96. Kxe5 {[%clk 0:00:35.7]}
1/2-1/2

[Event "*** Titled Tuesday 3|2 Blitz"]
[Site "Chess.com"]
[Date "2015.07.07"]
[Round "3"]
[White "LuckyTiger"]
[Black "162a54f5d"]
[Result "1-0"]
[WhiteElo "2426"]
[BlackElo "2224"]
[TimeControl "180+2"]
[EndTime "11:28:36 PDT"]
[Termination "LuckyTiger won by resignation"]

1. e4 {[%clk 0:03:01.9]} 1... e5 {[%clk 0:03:00.3]} 2. Nf3 {[%clk 0:03:02.7]}
2... Nc6 {[%clk 0:03:01.3]} 3. Bb5 {[%clk 0:03:04.2]} 3... a6 {[%clk 0:03:02.1]}
4. Ba4 {[%clk 0:03:05.5]} 4... Nf6 {[%clk 0:03:03.1]} 5. d3 {[%clk 0:03:07.2]}
5... b5 {[%clk 0:03:03.6]} 6. Bb3 {[%clk 0:03:08.4]} 6... Be7 {[%clk 0:03:05]}
7. O-O {[%clk 0:03:09]} 7... O-O {[%clk 0:03:06.1]} 8. a4 {[%clk 0:03:10.7]}
8... Rb8 {[%clk 0:03:05.6]} 9. Re1 {[%clk 0:03:07]} 9... d6 {[%clk 0:03:06.7]}
10. h3 {[%clk 0:03:01.7]} 10... Na5 {[%clk 0:03:07.5]} 11. Ba2 {[%clk
0:03:02.1]} 11... c5 {[%clk 0:03:07.7]} 12. Nc3 {[%clk 0:02:55.9]} 12... c4
{[%clk 0:02:53.6]} 13. Bg5 {[%clk 0:02:46]} 13... Be6 {[%clk 0:02:53.2]} 14.
axb5 {[%clk 0:02:36.8]} 14... axb5 {[%clk 0:02:53.7]} 15. Bb1 {[%clk 0:02:18.8]}
15... b4 {[%clk 0:02:51.3]} 16. Ne2 {[%clk 0:02:19.5]} 16... Qc7 {[%clk
0:02:48.2]} 17. d4 {[%clk 0:02:18.3]} 17... c3 {[%clk 0:02:41.2]} 18. bxc3
{[%clk 0:02:10.3]} 18... bxc3 {[%clk 0:02:41.9]} 19. Ra3 {[%clk 0:02:11.5]}
19... Nxe4 {[%clk 0:02:39.7]} 20. Bxe7 {[%clk 0:02:11.6]} 20... Qxe7 {[%clk
0:02:40.6]} 21. Rxa5 {[%clk 0:02:11.3]} 1-0

[Event "*** Titled Tuesday 3|2 Blitz"]
[Site "Chess.com"]
[Date "2015.07.07"]
[Round "3"]
[White "Jahonas"]
[Black "Carolina-moon"]
[Result "0-1"]
[WhiteElo "2086"]
[BlackElo "1991"]
[TimeControl "180+2"]
[EndTime "11:28:52 PDT"]
[Termination "Carolina-moon won by resignation"]

1. d4 {[%clk 0:03:01.9]} 1... f5 {[%clk 0:03:00.7]} 2. Nf3 {[%clk 0:03:02.2]}
2... Nf6 {[%clk 0:03:02.2]} 3. c4 {[%clk 0:03:03.4]} 3... g6 {[%clk 0:03:03.7]}
4. Nc3 {[%clk 0:03:04.7]} 4... Bg7 {[%clk 0:03:05.3]} 5. g3 {[%clk 0:03:06]}
5... O-O {[%clk 0:03:06.8]} 6. Bg2 {[%clk 0:03:07.5]} 6... d6 {[%clk 0:03:08.3]}
7. d5 {[%clk 0:03:07.3]} 7... c6 {[%clk 0:03:09.5]} 8. O-O {[%clk 0:03:08.1]}
8... e5 {[%clk 0:03:09.3]} 9. dxe6 {[%clk 0:03:09]} 9... Bxe6 {[%clk 0:03:09.2]}
10. Bf4 {[%clk 0:03:09.5]} 10... Bxc4 {[%clk 0:03:09.2]} 11. Bxd6 {[%clk
0:03:10.1]} 11... Re8 {[%clk 0:03:09.4]} 12. Re1 {[%clk 0:03:08.5]} 12... Na6
{[%clk 0:02:56.3]} 13. Ne5 {[%clk 0:03:05.5]} 13... Be6 {[%clk 0:02:45.5]} 14.
Qd2 {[%clk 0:02:55.4]} 14... Ne4 {[%clk 0:02:15.9]} 15. Nxe4 {[%clk 0:02:55.4]}
15... fxe4 {[%clk 0:02:17.3]} 16. Red1 {[%clk 0:02:49.6]} 16... Bd5 {[%clk
0:02:07.3]} 17. Qf4 {[%clk 0:02:32.1]} 17... Qxd6 {[%clk 0:02:00.4]} 0-1

[Event "*** Titled Tuesday 3|2 Blitz"]
[Site "Chess.com"]
[Date "2015.07.07"]
[Round "3"]
[White "kesarev"]
[Black "FMchesskid"]
[Result "1-0"]
[WhiteElo "2196"]
[BlackElo "1962"]
[TimeControl "180+2"]
[EndTime "11:29:01 PDT"]
[Termination "kesarev won by checkmate"]

1. Nf3 {[%clk 0:03:01.9]} 1... d5 {[%clk 0:02:59]} 2. c4 {[%clk 0:03:02.5]} 2...
e6 {[%clk 0:02:56.3]} 3. b3 {[%clk 0:03:02.6]} 3... Nf6 {[%clk 0:02:56.4]} 4.
Bb2 {[%clk 0:03:03.4]} 4... c5 {[%clk 0:02:57.7]} 5. g3 {[%clk 0:03:03.8]} 5...
Nc6 {[%clk 0:02:53.3]} 6. e3 {[%clk 0:03:04.5]} 6... Bd6 {[%clk 0:02:46]} 7. Bg2
{[%clk 0:03:04.4]} 7... O-O {[%clk 0:02:46.3]} 8. O-O {[%clk 0:03:04.7]} 8... e5
{[%clk 0:02:39.3]} 9. cxd5 {[%clk 0:02:52.7]} 9... Nxd5 {[%clk 0:02:38.7]} 10.
d4 {[%clk 0:02:51.3]} 10... Bg4 {[%clk 0:02:12]} 11. dxc5 {[%clk 0:02:22.6]}
11... Bxc5 {[%clk 0:02:09.1]} 12. Qc2 {[%clk 0:02:22.3]} 12... Qe7 {[%clk
0:01:59.3]} 13. Ng5 {[%clk 0:02:08.2]} 13... Ndb4 {[%clk 0:01:39.9]} 14. Qxh7#
{[%clk 0:02:08.1]} 1-0

[Event "*** Titled Tuesday 3|2 Blitz"]
[Site "Chess.com"]
[Date "2015.07.07"]
[Round "3"]
[White "KyronGriffith"]
[Black "armago"]
[Result "1-0"]
[WhiteElo "2254"]
[BlackElo "2141"]
[TimeControl "180+2"]
[EndTime "11:30:03 PDT"]
[Termination "KyronGriffith won by resignation"]

1. e4 {[%clk 0:03:01.9]} 1... c5 {[%clk 0:03:00.8]} 2. Nf3 {[%clk 0:03:02.9]}
2... Nc6 {[%clk 0:03:01.8]} 3. d4 {[%clk 0:03:03.6]} 3... cxd4 {[%clk
0:03:02.3]} 4. Nxd4 {[%clk 0:03:05.5]} 4... Nf6 {[%clk 0:03:03.6]} 5. Nc3 {[%clk
0:03:06.1]} 5... e5 {[%clk 0:03:05.1]} 6. Ndb5 {[%clk 0:03:06.5]} 6... d6 {[%clk
0:03:06.7]} 7. Bg5 {[%clk 0:03:07]} 7... a6 {[%clk 0:03:08.2]} 8. Na3 {[%clk
0:03:08]} 8... b5 {[%clk 0:03:09.7]} 9. Nd5 {[%clk 0:03:08.9]} 9... Be7 {[%clk
0:03:11.3]} 10. Bxf6 {[%clk 0:03:10.2]} 10... Bxf6 {[%clk 0:03:12.9]} 11. c4
{[%clk 0:03:10.9]} 11... b4 {[%clk 0:03:14]} 12. Nc2 {[%clk 0:03:12.4]} 12...
O-O {[%clk 0:03:15.2]} 13. g3 {[%clk 0:03:13.3]} 13... Bg5 {[%clk 0:03:15.9]}
14. Bg2 {[%clk 0:03:14.5]} 14... a5 {[%clk 0:03:13.2]} 15. O-O {[%clk
0:03:14.9]} 15... Rb8 {[%clk 0:02:59]} 16. b3 {[%clk 0:03:15.3]} 16... Be6
{[%clk 0:02:58.2]} 17. Qd3 {[%clk 0:03:15.6]} 17... g6 {[%clk 0:02:54.6]} 18.
Rad1 {[%clk 0:03:09.3]} 18... Kh8 {[%clk 0:02:23.5]} 19. f4 {[%clk 0:03:08.5]}
19... exf4 {[%clk 0:02:21.4]} 20. gxf4 {[%clk 0:03:10.4]} 20... Bh6 {[%clk
0:02:19.9]} 21. Nde3 {[%clk 0:03:04]} 21... Qb6 {[%clk 0:02:15]} 22. Kh1 {[%clk
0:02:52.9]} 22... Rbd8 {[%clk 0:02:07.2]} 23. f5 {[%clk 0:02:49.8]} 23... Ne5
{[%clk 0:01:56.8]} 24. Qd4 {[%clk 0:02:46.7]} 24... Qxd4 {[%clk 0:01:55.2]} 25.
Rxd4 {[%clk 0:02:48.6]} 25... gxf5 {[%clk 0:01:52]} 26. exf5 {[%clk 0:02:48.1]}
26... Bc8 {[%clk 0:01:50.9]} 27. Rfd1 {[%clk 0:02:38.6]} 27... Rg8 {[%clk
0:01:44.7]} 28. Rxd6 {[%clk 0:02:36]} 28... Rde8 {[%clk 0:01:44.7]} 29. Rxh6
{[%clk 0:02:31.2]} 1-0

[Event "*** Titled Tuesday 3|2 Blitz"]
[Site "Chess.com"]
[Date "2015.07.07"]
[Round "3"]
[White "Keaton87"]
[Black "lukas_111111"]
[Result "1-0"]
[WhiteElo "2439"]
[BlackElo "2174"]
[TimeControl "180+2"]
[EndTime "11:30:14 PDT"]
[Termination "Keaton87 won by resignation"]

1. d4 {[%clk 0:02:54.9]} 1... Nf6 {[%clk 0:02:59.8]} 2. Nf3 {[%clk 0:02:55.5]}
2... e6 {[%clk 0:02:57.4]} 3. Bg5 {[%clk 0:02:56.4]} 3... c5 {[%clk 0:02:53.4]}
4. e3 {[%clk 0:02:56.9]} 4... Nc6 {[%clk 0:02:52.9]} 5. c3 {[%clk 0:02:55.8]}
5... b6 {[%clk 0:02:51.4]} 6. Nbd2 {[%clk 0:02:56.6]} 6... Bb7 {[%clk
0:02:52.2]} 7. Bd3 {[%clk 0:02:56.7]} 7... Be7 {[%clk 0:02:52.6]} 8. O-O {[%clk
0:02:57.7]} 8... d6 {[%clk 0:02:50]} 9. a4 {[%clk 0:02:49.3]} 9... h6 {[%clk
0:02:48.1]} 10. Bh4 {[%clk 0:02:50]} 10... O-O {[%clk 0:02:48.3]} 11. Qb1 {[%clk
0:02:51.2]} 11... cxd4 {[%clk 0:02:43.9]} 12. exd4 {[%clk 0:02:51.8]} 12... Nh5
{[%clk 0:02:42.2]} 13. Bxe7 {[%clk 0:02:46.3]} 13... Qxe7 {[%clk 0:02:42.5]} 14.
Re1 {[%clk 0:02:43.1]} 14... f5 {[%clk 0:02:24.9]} 15. d5 {[%clk 0:02:40.9]}
15... Ne5 {[%clk 0:02:11.9]} 16. Nxe5 {[%clk 0:02:39.1]} 16... dxe5 {[%clk
0:02:11.4]} 17. Rxe5 {[%clk 0:02:40.1]} 17... Bxd5 {[%clk 0:01:57.7]} 18. Bc4
{[%clk 0:02:25]} 18... Bxg2 {[%clk 0:01:17.6]} 19. Rxe6 {[%clk 0:02:18.7]} 1-0

[Event "*** Titled Tuesday 3|2 Blitz"]
[Site "Chess.com"]
[Date "2015.07.07"]
[Round "3"]
[White "AlexCn1"]
[Black "MFBerna"]
[Result "0-1"]
[WhiteElo "2036"]
[BlackElo "2060"]
[TimeControl "180+2"]
[EndTime "11:32:17 PDT"]
[Termination "MFBerna won by resignation"]

1. b3 {[%clk 0:03:01.9]} 1... e5 {[%clk 0:02:58.1]} 2. Bb2 {[%clk 0:03:02.8]}
2... Nc6 {[%clk 0:02:57.7]} 3. e3 {[%clk 0:03:02.5]} 3... d5 {[%clk 0:02:58.8]}
4. Bb5 {[%clk 0:02:57.2]} 4... Bd6 {[%clk 0:02:59.3]} 5. Ne2 {[%clk 0:02:52.8]}
5... Nf6 {[%clk 0:02:59.2]} 6. Ng3 {[%clk 0:02:53.3]} 6... O-O {[%clk
0:02:58.7]} 7. O-O {[%clk 0:02:54]} 7... Ne7 {[%clk 0:02:58]} 8. f4 {[%clk
0:02:53.8]} 8... exf4 {[%clk 0:02:57.4]} 9. exf4 {[%clk 0:02:54.5]} 9... Nf5
{[%clk 0:02:55.4]} 10. Bd3 {[%clk 0:02:52.6]} 10... Nxg3 {[%clk 0:02:44.9]} 11.
hxg3 {[%clk 0:02:53.6]} 11... Bg4 {[%clk 0:02:46.3]} 12. Be2 {[%clk 0:02:54]}
12... Bxe2 {[%clk 0:02:31.5]} 13. Qxe2 {[%clk 0:02:54.8]} 13... Re8 {[%clk
0:02:31.3]} 14. Qf3 {[%clk 0:02:52.8]} 14... c6 {[%clk 0:02:24.8]} 15. d3 {[%clk
0:02:52.4]} 15... Qb6+ {[%clk 0:02:20.9]} 16. Qf2 {[%clk 0:02:48.8]} 16... Qxf2+
{[%clk 0:01:56.8]} 17. Rxf2 {[%clk 0:02:49.4]} 17... Ng4 {[%clk 0:01:52.8]} 18.
Rf1 {[%clk 0:02:50.1]} 18... Ne3 {[%clk 0:01:48.4]} 19. Rf2 {[%clk 0:02:49.9]}
19... Nd1 {[%clk 0:01:49.4]} 20. Bd4 {[%clk 0:02:46.7]} 20... Nxf2 {[%clk
0:01:46.5]} 21. Kxf2 {[%clk 0:02:46]} 21... c5 {[%clk 0:01:45.3]} 22. Be3 {[%clk
0:02:46.7]} 22... Re6 {[%clk 0:01:35.8]} 23. Na3 {[%clk 0:02:46.5]} 23... Rae8
{[%clk 0:01:34]} 24. Re1 {[%clk 0:02:47.4]} 24... d4 {[%clk 0:01:12.6]} 25. Bd2
{[%clk 0:02:47.3]} 25... Rxe1 {[%clk 0:01:14]} 26. Bxe1 {[%clk 0:02:48.3]} 26...
a6 {[%clk 0:01:10.1]} 27. c3 {[%clk 0:02:49.3]} 27... dxc3 {[%clk 0:00:48.9]}
28. Bxc3 {[%clk 0:02:49.8]} 28... b5 {[%clk 0:00:46.8]} 29. Nc2 {[%clk
0:02:51.4]} 29... f6 {[%clk 0:00:33.2]} 30. Ne3 {[%clk 0:02:49.1]} 30... Kf7
{[%clk 0:00:31.5]} 31. d4 {[%clk 0:02:50.3]} 31... Re4 {[%clk 0:00:23.5]} 32.
Kf3 {[%clk 0:02:48.2]} 32... Re8 {[%clk 0:00:21.9]} 33. Nf5 {[%clk 0:02:48.5]}
33... Bf8 {[%clk 0:00:22.2]} 34. d5 {[%clk 0:02:48.7]} 34... g6 {[%clk
0:00:22.2]} 35. Ne3 {[%clk 0:02:49.8]} 35... f5 {[%clk 0:00:19.9]} 36. g4 {[%clk
0:02:49.7]} 36... fxg4+ {[%clk 0:00:19.1]} 37. Nxg4 {[%clk 0:02:50.5]} 37... Bg7
{[%clk 0:00:13]} 38. Ne5+ {[%clk 0:02:50.4]} 38... Kg8 {[%clk 0:00:13]} 39. d6
{[%clk 0:02:48.3]} 39... Rd8 {[%clk 0:00:13.4]} 40. b4 {[%clk 0:02:42.9]} 40...
c4 {[%clk 0:00:12.5]} 41. d7 {[%clk 0:02:42.6]} 41... Bxe5 {[%clk 0:00:12.9]}
42. fxe5 {[%clk 0:02:44.1]} 42... Rxd7 {[%clk 0:00:14.8]} 43. Ke4 {[%clk
0:02:45.4]} 43... Kf7 {[%clk 0:00:14.6]} 44. Bd4 {[%clk 0:02:46.4]} 44... Ke6
{[%clk 0:00:15.4]} 45. g4 {[%clk 0:02:47.8]} 45... h5 {[%clk 0:00:15.9]} 46.
gxh5 {[%clk 0:02:47.9]} 46... gxh5 {[%clk 0:00:17.8]} 0-1